bitfinex-derivatives/quotes_ETHF0:USTF0_20210110
["timestamp","ask_amount","ask_price","bid_price","bid_amount"]
[1610297794452,12.1306426,1299.7,1299.6,10.0]
[1610297794754,4.00959,1299.7,1299.6,10.0]
[1610297795755,12.1159823,1299.7,1299.6,10.0]
[1610297797257,13.9168378,1299.7,1299.6,10.0]
[1610297797454,4.00959,1299.7,1299.6,10.0]
[1610297798558,15.7173698,1299.7,1299.6,10.0]
[1610297798855,4.00959,1299.7,1299.6,10.0]
[1610297799056,8.3007815,1299.7,1299.6,10.0]
[1610297800762,18.1950673,1299.7,1299.6,10.0]
[1610297801761,13.9038758,1299.7,1299.6,10.0]
[1610297801961,4.00959,1299.7,1299.6,10.0]
[1610297802461,13.9114834,1299.7,1299.6,10.0]
[1610297803364,12.1128307,1299.7,1299.6,10.0]
[1610297803765,20.00959,1299.7,1299.6,10.0]
[1610297804169,26.3163698,1299.7,1299.6,10.0]
[1610297805169,20.00959,1299.7,1299.6,10.0]
[1610297805770,26.3162178,1299.7,1299.6,10.0]
[1610297806571,20.00959,1299.7,1299.6,10.0]
[1610297806872,28.1108864,1299.7,1299.6,10.0]
[1610297807772,26.3107558,1299.7,1299.6,10.0]
[1610297810780,24.5034431,1299.7,1299.6,10.0]
[1610297811078,20.00959,1299.7,1299.6,10.0]
[1610297811578,19.147403,1299.7,1299.6,10.0]
[1610297812178,16.0,1299.7,1299.6,10.0]
[1610297813579,16.0,1299.7,1299.6,14.00959]
[1610297813779,14.45,1299.7,1299.6,15.52859]
[1610297813980,13.9394,1299.7,1299.6,15.52859]
[1610297814780,12.4094,1299.7,1299.6,15.52859]
[1610297814980,10.489,1299.7,1299.6,15.52859]
[1610297815185,7.0165,1299.7,1299.6,15.52859]
[1610297815381,5.4764,1299.7,1299.6,45.52859]
[1610297815782,5.114,1299.7,1299.6,45.52859]
[1610297816183,7.5553985,1300.4,1299.6,45.52859]
[1610297816382,47.5766795,1300.5,1299.6,46.7076865]
[1610297816582,47.5766795,1300.5,1299.7,10.0]
[1610297816781,3.1549795,1300.5,1299.7,53.2014]
[1610297816982,3.1549795,1300.5,1299.8,10.0]
[1610297817184,3.1558624,1300.6,1299.9,10.0]
[1610297817584,3.1558624,1300.6,1300.5,4.00959]
[1610297817985,3.1558624,1300.6,1300.5,2.1085]
[1610297818185,4.5097082,1300.6,1300.5,12.1085]
[1610297818588,6.3117894,1300.7,1300.5,12.1085]
[1610297818786,8.1131241,1300.8,1300.6,10.0]
[1610297819189,8.1131241,1300.8,1300.7,10.0]
[1610297819386,9.9150395,1300.9,1300.7,10.0]
[1610297819586,4.00959,1300.8,1300.6,10.0]
[1610297819789,9.9238726,1300.7,1300.6,10.0]
[1610297819986,9.9238726,1300.7,1300.5,2.1085]
[1610297820188,9.9238726,1300.7,1300.6,10.0]
[1610297820389,15.7367703,1300.8,1300.6,10.0]
[1610297820789,15.7367703,1300.8,1300.5,2.1085]
[1610297820790,4.00959,1300.8,1300.7,10.0]
[1610297821192,4.00959,1300.8,1300.6,10.0]
[1610297821590,4.00959,1300.8,1300.7,10.0]
[1610297821790,17.5303392,1300.8,1300.7,10.0]
[1610297822390,4.00959,1300.8,1300.7,10.0]
[1610297823091,8.4323999,1300.8,1300.7,10.0]
[1610297823692,23.7617998,1300.8,1300.7,10.0]
[1610297828297,34.7617998,1300.8,1300.7,10.0]
[1610297829198,19.4323999,1300.8,1300.7,10.0]
[1610297829598,49.4323999,1300.8,1300.7,10.0]
[1610297829798,56.9896628,1300.8,1300.7,10.0]
[1610297829998,56.9896628,1300.8,1300.7,8.8382]
[1610297830200,56.9896628,1300.8,1300.7,7.4582]
[1610297830400,56.9896628,1300.8,1299.7,45.4699]
[1610297830800,9.8857619,1299.8,1299.7,45.4699]
[1610297831401,9.8857619,1299.8,1299.7,55.4699]
[1610297831800,13.8953519,1299.8,1299.7,55.4699]
[1610297832500,4.00959,1299.8,1299.7,55.4699]
[1610297832900,13.8926535,1299.8,1299.7,55.4699]
[1610297833100,4.00959,1299.8,1299.7,55.4699]
[1610297833602,13.8963433,1299.8,1299.7,55.4699]
[1610297833802,4.00959,1299.8,1299.7,55.4699]
[1610297834301,34.00959,1299.8,1299.7,50.0831]
[1610297834502,36.08639,1299.8,1299.7,5.2708]
[1610297834702,49.5394365,1299.8,1299.7,4.6406]
[1610297834901,49.5394365,1299.8,1299.7,3.7418]
[1610297835104,51.3156071,1299.8,1299.7,3.3552]
[1610297835505,57.0126,1299.7,1298.1,48.8264]
[1610297835705,4.00959,1298.2,1296.8,3.405]
[1610297835904,4.00959,1298.2,1297.0,10.0]
[1610297836305,3.1335422,1298.1,1297.0,1.5886]
[1610297836707,3.1331223,1298.0,1297.1,10.0]
[1610297837106,3.1331223,1298.0,1297.2,10.0]
[1610297837504,3.1331223,1298.0,1297.0,1.5886]
[1610297837505,3.1331223,1298.0,1297.1,10.0]
[1610297837706,3.1331223,1298.0,1297.3,10.0]
[1610297838106,3.1331223,1298.0,1297.4,10.0]
[1610297838506,3.1340287,1298.1,1297.5,10.0]
[1610297838907,3.1340287,1298.1,1297.4,10.0]
[1610297839109,6.2620546,1298.4,1297.4,10.0]
[1610297839110,3.135979,1298.3,1297.4,10.0]
[1610297839307,3.135979,1298.3,1297.3,1.6751]
[1610297839308,3.135979,1298.3,1297.5,10.0]
[1610297839707,4.00959,1297.6,1297.4,10.0]
[1610297839907,4.00959,1297.6,1297.3,1.6751]
[1610297840307,4.00959,1297.6,1297.4,10.0]
[1610297840708,4.00959,1297.6,1297.5,10.0]
[1610297841109,4.00959,1297.6,1297.4,10.0]
[1610297841510,4.00959,1297.6,1297.5,10.0]
[1610297841911,4.00959,1297.6,1297.4,10.0]
[1610297842109,4.00959,1297.6,1297.5,10.0]
[1610297842510,4.00959,1297.6,1297.4,10.0]
[1610297842710,4.00959,1297.6,1297.5,10.0]
[1610297843111,4.00959,1297.6,1297.4,10.0]
[1610297843511,4.00959,1297.6,1297.5,10.0]
[1610297843912,4.00959,1297.6,1297.4,10.0]
[1610297844313,4.00959,1297.6,1297.5,10.0]
[1610297844715,4.00959,1297.6,1297.4,10.0]
[1610297845115,4.00959,1297.6,1297.5,10.0]
[1610297845516,4.00959,1297.6,1297.4,10.0]
[1610297846116,4.00959,1297.6,1297.5,10.0]
[1610297846316,4.00959,1297.6,1297.4,10.0]
[1610297846717,4.00959,1297.6,1297.3,1.6751]
[1610297846718,4.00959,1297.6,1297.5,10.0]
[1610297846918,4.00959,1297.6,1297.4,10.0]
[1610297847318,4.00959,1297.6,1297.5,10.0]
[1610297847718,4.00959,1297.6,1297.4,10.0]
[1610297848118,4.00959,1297.6,1297.5,10.0]
[1610297848518,4.00959,1297.6,1297.4,10.0]
[1610297848919,4.00959,1297.6,1297.5,10.0]
[1610297851422,3.126953,1298.3,1297.5,10.0]
[1610297851622,3.1264752,1298.2,1297.6,10.0]
[1610297851823,4.00959,1297.8,1297.6,10.0]
[1610297852023,4.00959,1297.8,1297.4,4.00959]
[1610297852024,4.00959,1297.8,1297.4,10.0]
[1610297852424,4.00959,1297.8,1297.7,10.0]
[1610297852624,4.00959,1297.8,1297.7,2.4049]
[1610297853224,4.00959,1297.8,1297.7,12.4049]
[1610297856024,4.00959,1297.8,1297.7,13.5861993]
[1610297857628,4.00959,1297.8,1297.7,12.4049]
[1610297858028,47.2938,1298.1,1297.7,12.4049]
[1610297858429,47.2938,1298.1,1297.8,10.0]
[1610297858829,47.2938,1298.1,1297.9,10.0]
[1610297859231,47.2938,1298.1,1297.8,11.1810644]
[1610297859630,47.2938,1298.1,1298.0,10.0]
[1610297859832,51.30339,1298.1,1298.0,1.5869]
[1610297860231,51.30339,1298.1,1298.0,11.5869]
[1610297860430,45.7769,1298.1,1298.0,13.142]
[1610297860631,3.126306,1298.7,1298.0,13.142]
[1610297861031,3.1258044,1298.8,1298.1,10.0]
[1610297861431,3.1258044,1298.8,1298.2,10.0]
[1610297861831,3.1258044,1298.8,1298.2,1.1807197]
[1610297862231,3.1258044,1298.8,1298.3,10.0]
[1610297862433,3.1309279,1298.7,1298.3,12.4579]
[1610297862632,3.1309279,1298.7,1298.4,10.0]
[1610297862831,3.1313333,1298.6,1298.4,10.0]
[1610297863031,3.1313333,1298.6,1298.5,10.0]
[1610297863432,3.1313333,1298.6,1298.4,10.0]
[1610297863733,4.00959,1298.5,1298.4,10.0]
[1610297863934,4.00959,1298.5,1298.3,2.4579]
[1610297864335,4.00959,1298.5,1298.4,10.0]
[1610297870237,7.1432823,1298.5,1298.4,10.0]
[1610297871040,4.00959,1298.5,1298.4,10.0]
[1610297875043,3.1380739,1298.8,1298.4,11.1805887]
[1610297875445,1.6108725,1299.0,1298.5,10.0]
[1610297875647,4.4874058,1299.3,1298.5,10.0]
[1610297875848,2.9474058,1299.3,1299.0,6.21099]
[1610297876047,6.283855,1299.6,1299.0,6.21099]
[1610297876447,6.2870474,1299.7,1299.1,10.0]
[1610297876646,6.2870474,1299.7,1299.2,10.0]
[1610297876848,6.2896282,1299.8,1299.2,10.0]
[1610297877050,6.2896282,1299.8,1299.1,10.0]
[1610297877248,6.2867144,1299.9,1299.1,10.0]
[1610297877448,6.2867144,1299.9,1299.2,10.0]
[1610297877748,6.2867144,1299.9,1299.8,4.00959]
[1610297877949,6.2888853,1300.0,1299.8,4.00959]
[1610297878550,6.2879871,1300.1,1299.9,10.0]
[1610297878950,6.2879871,1300.1,1300.0,10.0]
[1610297879350,6.2879871,1300.1,1299.9,10.0]
[1610297879550,6.28674,1300.2,1299.8,4.00959]
[1610297879750,6.28674,1300.2,1300.0,10.0]
[1610297879954,6.28674,1300.2,1299.9,10.0]
[1610297880250,6.2889981,1300.3,1300.0,10.0]
[1610297880651,6.2889981,1300.3,1299.9,10.0]
[1610297880852,6.2889981,1300.3,1300.0,10.0]
[1610297881153,6.2889981,1300.3,1300.0,11.7431]
[1610297881353,6.2889981,1300.3,1300.0,1.7431]
[1610297881553,6.2889981,1300.3,1300.1,10.0]
[1610297881853,4.00959,1300.2,1300.1,4.00959]
[1610297882154,4.00959,1300.2,1300.0,1.7431]
[1610297882354,4.00959,1300.2,1300.1,10.0]
[1610297882555,6.2888899,1300.4,1300.1,10.0]
[1610297882955,6.2907319,1300.5,1300.2,10.0]
[1610297883255,6.2907319,1300.5,1300.1,10.0]
[1610297883655,6.2970185,1300.6,1300.2,10.0]
[1610297883855,4.00959,1300.5,1300.2,10.0]
[1610297884055,4.00959,1300.5,1300.3,10.0]
[1610297884454,4.00959,1300.5,1300.3,1.8591]
[1610297884859,0.94959,1300.5,1300.4,10.0]
[1610297885858,8.5097482,1300.7,1300.4,14.00959]
[1610297886258,8.5097482,1300.7,1300.5,10.0]
[1610297886659,8.5097482,1300.7,1300.6,10.0]
[1610297886860,4.00959,1300.7,1300.6,10.0]
[1610297887059,10.3078497,1300.7,1300.6,2.1366]
[1610297887359,10.3078497,1300.7,1300.6,12.1366]
[1610297887760,12.1026778,1300.7,1300.6,12.1366]
[1610297888360,4.00959,1300.7,1300.6,12.1366]
[1610297888663,13.8946174,1300.7,1300.6,12.1366]
[1610297889061,4.00959,1300.7,1300.6,12.1366]
[1610297889460,13.8939874,1300.7,1300.6,12.1366]
[1610297889862,4.00959,1300.7,1300.6,12.1366]
[1610297890061,12.1002273,1300.7,1300.6,12.1366]
[1610297891264,4.00959,1300.7,1300.6,12.1366]
[1610297892062,13.91409,1300.7,1300.6,12.1366]
[1610297893363,4.00959,1300.7,1300.6,12.1366]
[1610297893665,13.9147023,1300.7,1300.6,12.1366]
[1610297894663,4.00959,1300.7,1300.6,12.1366]
[1610297895063,8.4517132,1300.7,1300.6,12.1366]
[1610297895263,20.1471302,1300.7,1300.6,12.1366]
[1610297895464,8.4517132,1300.7,1300.6,12.1366]
[1610297895864,10.1210132,1300.7,1300.6,12.1366]
[1610297896064,23.6031621,1300.7,1300.6,12.1366]
[1610297896465,10.1210132,1300.7,1300.6,12.1366]
[1610297897263,23.6022398,1300.7,1300.6,12.1366]
[1610297898563,10.1210132,1300.7,1300.6,12.1366]
[1610297899468,10.1210132,1300.7,1300.6,10.0]
[1610297905070,21.8296528,1300.7,1300.6,10.0]
[1610297905370,10.1210132,1300.7,1300.6,10.0]
[1610297906470,21.8411642,1300.7,1300.6,10.0]
[1610297906671,10.1210132,1300.7,1300.6,10.0]
[1610297907272,21.8485901,1300.7,1300.6,10.0]
[1610297907673,10.1210132,1300.7,1300.6,10.0]
[1610297908272,21.8504576,1300.7,1300.6,10.0]
[1610297911273,29.403737,1300.7,1300.6,10.0]
[1610297911674,21.8504576,1300.7,1300.6,10.0]
[1610297915080,10.1210132,1300.7,1300.6,10.0]
[1610297916181,23.6781033,1300.7,1300.6,10.0]
[1610297916380,10.1210132,1300.7,1300.6,10.0]
[1610297916787,47.6767626,1300.7,1300.6,10.0]
[1610297916989,17.6767626,1300.7,1300.6,10.0]
[1610297917188,40.1210132,1300.7,1300.6,10.0]
[1610297917389,47.6775266,1300.7,1300.6,10.0]
[1610297917989,47.6775266,1300.7,1300.6,9.6209]
[1610297918188,47.6775266,1300.7,1300.6,4.5664483]
[1610297918389,40.1210132,1300.7,1300.6,2.9755483]
[1610297918590,57.2692167,1300.7,1300.6,2.9755483]
[1610297918789,57.2692167,1300.7,1300.6,0.6624483]
[1610297919190,57.2692167,1300.7,1298.8,1.7088]
[1610297919391,40.1210132,1300.7,1300.6,10.0]
[1610297919791,40.1210132,1300.7,1298.9,10.0]
[1610297919993,4.00959,1299.0,1298.4,2.3465]
[1610297920191,4.00959,1299.0,1298.9,147.6508]
[1610297920392,4.00959,1299.0,1298.9,10.0]
[1610297920791,4.00959,1299.0,1298.5,10.0]
[1610297920992,4.00959,1299.0,1298.4,2.3465]
[1610297921190,4.00959,1299.0,1298.6,10.0]
[1610297921591,4.00959,1299.0,1298.5,1.1803362]
[1610297921792,4.00959,1299.0,1298.7,10.0]
[1610297922194,4.00959,1299.0,1298.6,10.0]
[1610297922394,4.00959,1299.0,1298.7,10.0]
[1610297922591,4.00959,1299.0,1298.6,10.0]
[1610297922793,4.00959,1299.0,1298.5,5.1899262]
[1610297922994,4.00959,1299.0,1298.8,10.0]
[1610297923393,4.00959,1299.0,1298.6,10.0]
[1610297923592,4.00959,1299.0,1298.7,10.0]
[1610297923992,4.00959,1299.0,1298.6,10.0]
[1610297924193,4.00959,1299.0,1298.8,10.0]
[1610297924795,4.00959,1299.0,1298.9,10.0]
[1610297925393,8.5276611,1299.0,1298.9,10.0]
[1610297926694,10.3267533,1299.0,1298.9,10.0]
[1610297927095,4.00959,1299.0,1298.9,10.0]
[1610297928199,10.3196623,1299.0,1298.9,10.0]
[1610297929798,4.00959,1299.0,1298.9,10.0]
[1610297930198,12.1126999,1299.0,1298.9,10.0]
[1610297930398,4.00959,1299.0,1298.9,10.0]
[1610297931500,12.1104123,1299.0,1298.9,10.0]
[1610297932401,4.00959,1299.0,1298.9,10.0]
[1610297933002,13.9017729,1299.0,1298.9,10.0]
[1610297933805,12.0985919,1299.0,1298.9,10.0]
[1610297935205,4.00959,1299.0,1298.9,10.0]
[1610297936103,10.2991486,1299.0,1298.9,10.0]
[1610297936404,4.00959,1299.0,1298.9,10.0]
[1610297936705,10.2983574,1299.0,1298.9,10.0]
[1610297938106,4.00959,1299.0,1298.9,10.0]
[1610297938705,12.070721,1299.0,1298.9,10.0]
[1610297939506,4.00959,1299.0,1298.9,10.0]
[1610297939906,13.8546949,1299.0,1298.9,10.0]
[1610297940311,4.00959,1299.0,1298.9,10.0]
[1610297940711,12.0713385,1299.0,1298.9,10.0]
[1610297940915,10.2816909,1299.0,1298.9,10.0]
[1610297943210,12.0676771,1299.0,1298.9,10.0]
[1610297943614,4.00959,1299.0,1298.9,10.0]
[1610297944011,13.8684563,1299.0,1298.9,10.0]
[1610297945113,8.513782,1299.0,1298.9,10.0]
[1610297946214,18.378235,1299.0,1298.9,10.0]
[1610297946616,8.513782,1299.0,1298.9,10.0]
[1610297947016,18.3733014,1299.0,1298.9,10.0]
[1610297950219,8.513782,1299.0,1298.9,10.0]
[1610297950619,38.513782,1299.0,1298.9,10.0]
[1610297950820,50.1484196,1299.0,1298.9,10.0]
[1610297951019,50.1484196,1299.0,1298.9,9.7681]
[1610297951220,34.504192,1299.0,1298.9,9.1113]
[1610297951419,47.9167329,1299.0,1298.9,7.897]
[1610297951619,47.9167329,1299.0,1298.9,6.4303]
[1610297951821,47.9167329,1299.0,1298.9,4.4892]
[1610297952019,38.513782,1299.0,1298.9,3.9941]
[1610297952221,8.513782,1299.0,1298.9,3.5741]
[1610297952419,8.513782,1299.0,1298.9,3.1219]
[1610297952619,21.9205441,1299.0,1298.9,3.1219]
[1610297953024,8.513782,1299.0,1298.9,3.1219]
[1610297953622,20.1476362,1299.0,1298.9,3.1219]
[1610297954921,8.513782,1299.0,1298.9,3.1219]
[1610297955322,38.513782,1299.0,1298.9,1.5869]
[1610297955922,8.513782,1299.0,1298.9,1.5869]
[1610297956323,38.513782,1299.0,1298.9,1.5869]
[1610297957124,38.513782,1299.0,1298.9,1.203]
[1610297957324,38.513782,1299.0,1297.9,60.3849]
[1610297957524,59.1843,1298.9,1297.4,1.9057]
[1610297957724,59.1843,1298.9,1298.0,10.0]
[1610297957725,9.8242946,1298.1,1298.0,10.0]
[1610297958127,9.8242946,1298.1,1297.5,10.0]
[1610297958128,13.8338846,1298.1,1297.5,10.0]
[1610297958324,13.8338846,1298.1,1296.4,58.0735]
[1610297958524,4.00959,1298.1,1297.6,10.0]
[1610297958924,4.466582,1297.7,1297.0,2.4448]
[1610297959125,4.4704691,1297.9,1297.0,2.4448]
[1610297959326,4.4704691,1297.9,1297.1,10.0]
[1610297959527,4.4721805,1298.0,1297.2,10.0]
[1610297960027,4.4721805,1298.0,1297.1,10.0]
[1610297960227,4.00959,1297.3,1297.1,10.0]
[1610297960425,4.00959,1297.3,1297.0,2.4448]
[1610297960628,4.00959,1297.3,1297.1,10.0]
[1610297961227,4.00959,1297.3,1296.5,12.0973]
[1610297961428,8.4704396,1297.3,1296.5,2.0973]
[1610297961628,8.4704396,1297.3,1296.6,10.0]
[1610297962027,4.4602136,1297.2,1296.7,10.0]
[1610297962428,4.4602136,1297.2,1296.8,10.0]
[1610297962429,4.4586771,1297.1,1296.8,10.0]
[1610297962629,4.4570849,1297.0,1296.8,10.0]
[1610297962828,4.4570849,1297.0,1296.6,10.0]
[1610297963028,4.4567092,1296.9,1296.7,10.0]
[1610297963230,4.4559867,1296.8,1296.7,10.0]
[1610297963628,4.4559867,1296.8,1296.5,10.0]
[1610297964028,3.1224625,1296.8,1296.7,10.0]
[1610297964831,3.1258195,1296.9,1296.7,10.0]
[1610297965231,4.4633376,1297.0,1296.8,10.0]
[1610297965632,3.1262022,1296.9,1296.2,10.0]
[1610297965833,4.4632476,1296.9,1296.2,10.0]
[1610297966131,4.00959,1296.3,1296.1,2.226]
[1610297966533,4.00959,1296.3,1296.2,10.0]
[1610297970534,54.0816,1296.4,1296.2,10.0]
[1610297970938,54.0816,1296.4,1296.3,10.0]
[1610297971335,54.0816,1296.4,1296.2,10.0]
[1610297971535,3.1389169,1297.1,1296.2,10.0]
[1610297971737,3.1409218,1297.2,1296.3,10.0]
[1610297972136,4.00959,1296.7,1296.5,4.00959]
[1610297972738,4.00959,1296.7,1296.6,10.0]
[1610297972941,3.1410398,1297.3,1296.6,12.1086]
[1610297973142,3.1410398,1297.3,1296.7,10.0]
[1610297973341,3.142596,1297.5,1296.7,10.0]
[1610297973742,3.1427372,1297.6,1296.8,10.0]
[1610297973943,3.1438861,1297.7,1296.8,10.0]
[1610297974142,4.00959,1297.6,1297.5,4.00959]
[1610297974742,4.00959,1297.6,1297.5,14.00959]
[1610297974943,4.00959,1297.6,1297.5,10.0]
[1610297975144,3.1432405,1297.9,1297.5,10.0]
[1610297975345,1.6362306,1298.0,1297.6,10.0]
[1610297975545,6.287973,1298.3,1297.6,10.0]
[1610297975546,4.4939073,1298.3,1297.6,10.0]
[1610297975745,4.4939073,1298.3,1297.7,10.0]
[1610297976146,8.5034973,1298.3,1298.1,4.00959]
[1610297976347,4.00959,1298.3,1298.1,4.00959]
[1610297976547,4.00959,1298.3,1298.2,10.0]
[1610297978248,8.5129502,1298.3,1298.2,10.0]
[1610297978650,10.3103308,1298.3,1298.2,10.0]
[1610297979750,12.105689,1298.3,1298.2,10.0]
[1610297980352,4.00959,1298.3,1298.2,10.0]
[1610297980754,13.9000618,1298.3,1298.2,10.0]
[1610297981757,4.00959,1298.3,1298.2,10.0]
[1610297982956,13.8990053,1298.3,1298.2,10.0]
[1610297983657,4.00959,1298.3,1298.2,10.0]
[1610297984459,12.1012912,1298.3,1298.2,10.0]
[1610297984856,4.00959,1298.3,1298.2,10.0]
[1610297985456,12.1260853,1298.3,1298.2,10.0]
[1610297985656,13.9251538,1298.3,1298.2,10.0]
[1610297986259,4.00959,1298.3,1298.2,10.0]
[1610297986957,34.00959,1298.3,1298.2,10.0]
[1610297987357,34.00959,1298.3,1298.2,7.2762]
[1610297987758,30.0,1298.3,1298.2,7.2762]
[1610297987958,31.5276,1298.3,1298.2,7.2762]
[1610297988259,35.53719,1298.3,1298.2,7.2762]
[1610297988659,40.0415299,1298.3,1298.2,2.54458]
[1610297990559,10.0415299,1298.3,1298.2,2.54458]
[1610297990960,8.5139299,1298.3,1298.2,2.54458]
[1610297991162,23.7802903,1298.3,1298.2,2.54458]
[1610297991362,8.5139299,1298.3,1298.2,2.54458]
[1610297993963,21.9948287,1298.3,1298.2,2.54458]
[1610297994462,51.9948287,1298.3,1298.2,2.54458]
[1610297994664,40.0529299,1298.3,1298.2,2.54458]
[1610297995364,55.324734,1298.3,1298.2,2.54458]
[1610297995667,38.5139299,1298.3,1298.2,2.54458]
[1610297995866,8.5139299,1298.3,1298.2,2.54458]
[1610297996064,23.7854569,1298.3,1298.2,2.54458]
[1610297996964,8.5139299,1298.3,1298.2,2.54458]
[1610297997564,17.9984817,1298.3,1298.2,2.54458]
[1610297997966,4.5043399,1298.3,1298.2,2.54458]
[1610297998363,8.5139299,1298.3,1298.2,2.54458]
[1610297999171,20.230428,1298.3,1298.2,2.54458]
[1610298000067,40.0381299,1298.3,1298.2,2.54458]
[1610298000267,52.0166881,1298.3,1298.2,2.54458]
[1610298000668,38.5139299,1298.3,1298.2,2.54458]
[1610298001270,55.3406272,1298.3,1298.2,2.54458]
[1610298002772,55.3406272,1298.3,1298.2,8e-05]
[1610298002973,40.0643299,1298.3,1298.2,8e-05]
[1610298003474,57.1095765,1298.3,1298.2,8e-05]
[1610298004276,40.0643299,1298.3,1298.2,8e-05]
[1610298004774,56.2926,1298.2,1296.3,51.2686]
[1610298004975,30.0,1298.1,1296.3,51.2686]
[1610298005175,31.8567,1298.1,1296.4,10.0]
[1610298005375,4.4814304,1296.7,1296.4,10.0]
[1610298005575,4.4814304,1296.7,1296.5,10.0]
[1610298005977,4.4814304,1296.7,1296.4,10.0]
[1610298006378,4.00959,1296.5,1296.4,10.0]
[1610298006580,4.00959,1296.5,1296.3,51.2686]
[1610298006778,4.00959,1296.5,1296.4,10.0]
[1610298012291,4.00959,1296.5,1296.4,11.1825701]
[1610298013588,4.00959,1296.5,1296.4,10.0]
[1610298016290,58.251,1296.7,1296.4,10.0]
[1610298016491,4.00959,1297.0,1296.6,4.00959]
[1610298016691,4.00959,1297.0,1296.6,6.15639]
[1610298017090,4.00959,1297.0,1296.6,16.15639]
[1610298017490,2.9358086,1297.6,1296.6,16.15639]
[1610298017690,1.3878086,1297.6,1296.6,47.69939]
[1610298017890,6.2810007,1297.8,1296.7,11.1818651]
[1610298018091,6.2810007,1297.8,1296.8,30.0]
[1610298018292,45.261,1297.9,1296.8,40.0]
[1610298018491,4.00959,1297.8,1297.7,4.00959]
[1610298018692,45.261,1297.9,1297.7,4.00959]
[1610298018892,45.261,1297.9,1297.8,10.0]
[1610298019092,8.0854448,1298.3,1297.8,10.0]
[1610298019295,8.084328,1298.5,1297.8,10.0]
[1610298019493,8.084328,1298.5,1297.9,10.0]
[1610298019694,8.0904224,1298.7,1297.9,11.7516]
[1610298019893,8.0904224,1298.7,1297.9,1.7516]
[1610298020093,9.8872958,1298.8,1297.9,1.7516]
[1610298020094,8.0963748,1298.8,1297.9,1.7516]
[1610298020294,8.0987794,1298.9,1297.9,1.7516]
[1610298020493,8.0987794,1298.9,1298.0,10.0]
[1610298020494,4.00959,1298.5,1298.0,10.0]
[1610298020894,4.00959,1298.5,1298.1,10.0]
[1610298021494,2.49959,1298.5,1297.9,5.76119]
[1610298021694,2.49959,1298.5,1298.0,10.0]
[1610298022094,2.49959,1298.5,1298.2,11.7241]
[1610298022294,2.49959,1298.5,1298.2,1.7241]
[1610298022495,8.1007216,1298.9,1298.2,5.73369]
[1610298022896,8.1007216,1298.9,1298.3,10.0]
[1610298023096,9.8975089,1299.0,1298.2,7.26519]
[1610298023097,8.1054718,1299.0,1298.4,10.0]
[1610298023296,8.1092562,1299.1,1298.4,10.0]
[1610298023698,8.1111488,1299.2,1298.3,10.0]
[1610298023896,8.1111488,1299.2,1298.5,10.0]
[1610298024296,8.1111488,1299.2,1298.5,3.8792]
[1610298024499,8.1111488,1299.2,1298.6,14.00959]
[1610298024900,8.1175757,1299.4,1298.6,4.00959]
[1610298025299,8.1175757,1299.4,1298.7,10.0]
[1610298025501,8.1175757,1299.4,1298.8,10.0]
[1610298025901,8.116423,1299.3,1298.8,2.4065]
[1610298026403,8.116423,1299.3,1298.9,10.0]
[1610298026801,6.335623,1299.3,1299.0,10.0]
[1610298027002,8.1217592,1299.5,1299.0,10.0]
[1610298027201,9.9273867,1299.7,1299.1,4.00959]
[1610298027402,8.5073867,1299.7,1299.1,6.03399]
[1610298027603,4.00959,1299.8,1299.1,16.03399]
[1610298027802,3.88959,1299.8,1299.1,16.03399]
[1610298028003,4.5161406,1299.4,1299.1,16.03399]
[1610298028201,1.4861406,1299.4,1299.1,16.03399]
[1610298028402,6.3223151,1299.6,1299.1,16.03399]
[1610298029002,6.3223151,1299.6,1299.1,6.03399]
[1610298029201,6.3223151,1299.6,1299.5,4.00959]
[1610298029604,6.3237822,1299.7,1299.5,4.00959]
[1610298029802,6.3237822,1299.7,1299.5,14.00959]
[1610298030001,11.7426622,1300.3,1299.5,14.00959]
[1610298030202,11.7426622,1300.3,1299.6,10.0]
[1610298030402,11.7553575,1300.5,1299.6,10.0]
[1610298030603,11.7553575,1300.5,1299.7,10.0]
[1610298030803,11.7583097,1300.6,1299.7,11.5554]
[1610298031004,11.5498097,1300.6,1299.7,1.5554]
[1610298031204,11.5498097,1300.6,1300.2,4.00959]
[1610298031407,11.0,1300.8,1300.3,10.0]
[1610298031808,9.48,1300.8,1300.4,10.0]
[1610298032013,6.7947,1300.8,1300.4,10.0]
[1610298032213,6.643,1300.8,1300.4,10.0]
[1610298032412,6.643,1300.8,1300.3,10.0]
[1610298032612,6.643,1300.8,1300.5,10.0]
[1610298033014,6.643,1300.8,1300.5,1.7176]
[1610298033213,13.596816,1301.2,1300.6,10.0]
[1610298033413,13.6102998,1301.3,1300.6,10.0]
[1610298033612,13.6102998,1301.3,1300.7,10.0]
[1610298033812,53.2412,1301.7,1300.7,10.0]
[1610298033813,13.6203463,1301.4,1300.7,10.0]
[1610298034013,53.2412,1301.7,1300.6,10.0]
[1610298034413,53.2412,1301.7,1300.5,3.2405]
[1610298034414,53.2412,1301.7,1300.7,10.0]
[1610298034612,15.4589971,1302.0,1300.6,10.0]
[1610298035013,17.1051586,1302.1,1300.7,10.0]
[1610298035215,17.1051586,1302.1,1301.2,4.00959]
[1610298035815,1.6366,1302.1,1301.3,10.0]
[1610298036216,4.5351512,1302.0,1301.4,10.0]
[1610298036616,4.5351512,1302.0,1301.3,10.0]